fUSD/lending_fUSD_20260202
["ID","MTS","AMOUNT","RATE_DAILY","PERIOD"]
[404327972,1770062895733,657.77108082,0.00010584,2]
[404327973,1770062895774,657.77108082,0.00010584,2]
[404327974,1770062895814,657.77108082,0.00010584,2]
[404327975,1770062895853,657.77108082,0.00010584,2]
[404327976,1770062895894,612.43826123,0.00010584,2]
[404327977,1770062895922,45.33281959,0.00010584,2]
[404327978,1770062895963,657.77108082,0.00010584,2]
[404327979,1770062896005,657.77108082,0.00010584,2]
[404327980,1770062896044,657.77108082,0.00010584,2]
[404327981,1770062896083,657.77108082,0.00010584,2]
[404327982,1770062896122,657.77108082,0.00010584,2]
[404327983,1770062896174,657.77108082,0.00010584,2]
[404327984,1770062896214,657.77108082,0.00010584,2]
[404327985,1770062896253,657.77108082,0.00010584,2]
[404327986,1770062896294,657.77108082,0.00010584,2]
[404327987,1770062896338,657.77108082,0.00010584,2]
[404327988,1770062896382,657.77108082,0.00010584,2]
[404327989,1770062896446,657.77108082,0.00010584,2]
[404327990,1770062896490,657.77108082,0.00010584,2]
[404327991,1770062896538,657.77108082,0.00010584,2]
[404327992,1770062896578,657.77108082,0.00010584,2]
[404327993,1770062896620,88.11096811,0.00010584,2]
[404327994,1770062896647,569.66011271,0.00010584,2]
[404327995,1770062896704,657.77108082,0.00010584,2]
[404327996,1770062896745,657.77108082,0.00010584,2]
[404327997,1770062909181,190.19630166,0.00010523,2]
[404327998,1770062914764,-500.0,0.00010585,2]
[404327999,1770062917331,-500.0,0.00010585,2]
[404328000,1770062918187,-500.0,0.00010585,2]
[404328001,1770062918900,-500.0,0.00010585,2]
[404328002,1770062919606,-500.0,0.00010585,2]
[404328003,1770062928823,498.20334868,0.00010584,2]
[404328004,1770062941652,300.0,0.00010584,2]
[404328005,1770062942038,150.0,0.00010584,2]
[404328007,1770062943186,300.0,0.00010584,2]
[404328008,1770062944951,1257.6684,0.00010485,2]
[404328009,1770062946999,857.36626634,0.00010523,2]
[404328010,1770062958855,-500.0,0.00010585,2]
[404328011,1770062965678,1000.0,0.00010409,2]
[404328012,1770062967273,457.35158033,0.0001049,2]
[404328013,1770062967666,1600.0,0.00010409,2]
[404328014,1770062978239,437.18007782,0.00010584,2]
[404328015,1770062978283,1066.84175082,0.0001049,2]
[404328016,1770062978306,60.76662103,0.0001049,2]
[404328017,1770062997061,9939.24337897,0.00010485,2]
[404328018,1770062997086,10000.01,0.00010485,2]
[404328019,1770062997110,10000.01,0.00010485,2]
[404328020,1770062997134,10000.01,0.00010485,2]
[404328021,1770062997159,10000.01,0.00010485,2]
[404328022,1770062997182,10000.01,0.00010485,2]
[404328023,1770062997206,10000.01,0.00010485,2]
[404328024,1770062997229,10000.01,0.00010485,2]
[404328025,1770062997252,10000.01,0.00010485,2]
[404328026,1770063006041,-2047.01,0.00010466,2]
[404328027,1770063006274,-905.99,0.00010466,2]
[404328028,1770063006304,-300.0,0.00010484,2]
[404328029,1770063006332,-300.0,0.00010484,2]
[404328030,1770063006359,-300.0,0.00010484,2]
[404328031,1770063006387,-188.03,0.00010484,2]
[404328032,1770063006510,-1011.97,0.00010484,2]
[404328033,1770063006539,-236.0,0.00010484,2]
[404328034,1770063016379,2006.94510805,0.000104,2]
[404328042,1770063031549,-1498.41572974,0.00010485,2]
[404328043,1770063031604,-1292.2457146,0.00010485,2]
[404328044,1770063031615,-3639.61909237,0.00010485,2]
[404328045,1770063031626,-814.47785732,0.00010485,2]
[404328046,1770063031662,-776.97,0.00010485,2]
[404328047,1770063031673,-115373.95353522,0.00010485,2]
[404328048,1770063031684,-275243.84382755,0.00010485,2]
[404328049,1770063031695,-725.51791675,0.00010485,2]
[404328050,1770063031717,-2229.71779747,0.00010485,2]
[404328051,1770063031728,-856.63891136,0.00010485,2]
[404328138,1770063033333,306.02605447,0.00010484,2]
[404328141,1770063037733,-505.0,0.00010485,2]
[404328142,1770063037791,-2665.15659391,0.00010485,2]
[404328143,1770063037802,-3321.00205284,0.00010485,2]
[404328144,1770063037815,-819.75877146,0.00010485,2]
[404328145,1770063037827,-1560.55912574,0.00010485,2]
[404328146,1770063037845,-393696.7680947,0.00010485,2]
[404328147,1770063037854,-344.123,0.00010485,2]
[404328148,1770063037864,-851.16007101,0.00010485,2]
[404328149,1770063037874,-406.56323315,0.00010575,2]
[404328150,1770063037883,-406.56323315,0.00010575,2]
[404328151,1770063037893,-2983964.70035474,0.00010585,2]
[404328152,1770063037902,-200.0,0.00010585,2]
[404328153,1770063037912,-250.0,0.00010589,2]
[404328154,1770063037921,-296002.9473674,0.00010594,2]
[404328155,1770063037931,-200.0,0.00010691,2]
[404328156,1770063037944,-83245.17367688,0.00010723,2]
[404328157,1770063037954,-262.63560582,0.00010723,2]
[404328158,1770063037964,-648.61982992,0.00010723,2]
[404328159,1770063037975,-1000.0,0.00010729,2]
[404328160,1770063037985,-33288.2505,0.0001073,2]
[404328161,1770063037995,-1000.0,0.0001073,2]
[404328162,1770063038005,-427.52,0.0001073,2]
[404328163,1770063038016,-150.99,0.0001073,2]
[404328164,1770063038025,-348.93,0.0001073,2]
[404328165,1770063038036,-9999.99,0.0001073,2]
[404328166,1770063038047,-150.99,0.0001073,2]
[404328167,1770063038057,-9999.99,0.0001073,2]
[404328169,1770063038067,-299.99,0.0001073,2]
[404328171,1770063038077,-9156.55,0.0001073,2]
[404328173,1770063038087,-999.99,0.0001073,2]
[404328175,1770063038096,-9999.99,0.0001073,2]
[404328177,1770063038106,-14009.2,0.0001073,2]
[404328179,1770063038115,-260706.89,0.0001073,2]
[404328181,1770063038125,-9999.99,0.0001073,2]
[404328183,1770063038134,-9999.99,0.0001073,2]
[404328185,1770063038144,-499.99,0.0001073,2]
[404328187,1770063038158,-4999.99,0.0001073,2]
[404328189,1770063038167,-1470.33,0.0001073,2]
[404328191,1770063038176,-27680.2,0.0001073,2]
[404328193,1770063038186,-29999.99,0.0001073,2]
[404328195,1770063038196,-200.0,0.00010798,2]
[404328197,1770063038205,-433.69,0.000109,2]
[404328199,1770063038214,-19999.99,0.000109,2]
[404328201,1770063038224,-9999.99,0.000109,2]
[404328203,1770063038234,-2816.95173351,0.000109,2]
[404328205,1770063038244,-200.0,0.00010906,2]
[404328207,1770063038254,-500.0,0.00010959,2]
[404328209,1770063038263,-493.01262256,0.00010959,2]
[404328211,1770063038274,-150.0,0.00010959,2]
[404328213,1770063038284,-200.0,0.00011015,2]
[404328215,1770063038293,-51256.53880022,0.00011099,2]
[404328217,1770063038302,-51256.53880018,0.00011099,2]
[404328219,1770063038312,-6998.0119,0.00011123,2]
[404328222,1770063038324,-200.0,0.00011133,2]
[404328224,1770063038334,-500.0,0.00011133,2]
[404328226,1770063038344,-200.0,0.00011133,2]
[404328228,1770063038354,-7803.81,0.00011152,2]
[404328230,1770063038364,-233.87643987,0.0001116,2]
[404328232,1770063038374,-500.0,0.0001116,2]
[404328234,1770063038384,-51256.53880018,0.00011181,2]
[404328236,1770063038393,-1165.76,0.00011214,2]
[404328238,1770063038403,-271.0,0.00011226,2]
[404328240,1770063038413,-152.0,0.00011249,2]
[404328242,1770063038422,-1002.0,0.0001127,2]
[404328244,1770063038432,-489.0,0.00011293,2]
[404328246,1770063038441,-1043.0,0.00011315,2]
[404328248,1770063038451,-1089.0,0.00011338,2]
[404328250,1770063038460,-500.0,0.00011434,2]
[404328252,1770063038469,-51256.53880018,0.00011526,2]
[404328254,1770063038479,-420.0,0.00011527,2]
[404328256,1770063038488,-1680.0,0.00011532,2]
[404328258,1770063038498,-195.0,0.00011532,2]
[404328259,1770063038507,-613.0,0.00011533,2]
[404328260,1770063038521,-2816.95173349,0.00011549,2]
[404328261,1770063038532,-1861.0,0.00011556,2]
[404328262,1770063038542,-1128.0,0.00011579,2]
[404328263,1770063038553,-255.0,0.00011611,2]
[404328264,1770063038564,-420.0,0.00011635,2]
[404328265,1770063038573,-500.0,0.00011643,2]
[404328266,1770063038583,-500.0,0.00011643,2]
[404328267,1770063038593,-300.0,0.00011643,2]
[404328268,1770063038604,-188.01840449,0.00011643,2]
[404328269,1770063038614,-195.0,0.00011643,2]
[404328270,1770063038624,-250.0,0.00011643,2]
[404328271,1770063038634,-539.56453595,0.00011643,2]
[404328272,1770063038644,-300.0,0.00011643,2]
[404328273,1770063038655,-195.0,0.00011643,2]
[404328274,1770063038664,-500.0,0.00011643,2]
[404328275,1770063038674,-500.0,0.00011643,2]
[404328276,1770063038683,-300.0,0.00011643,2]
[404328277,1770063038693,-300.0,0.00011643,2]
[404328278,1770063038703,-193.0,0.00011643,2]
[404328279,1770063038716,-195.0,0.00011643,2]
[404328280,1770063038730,-250.0,0.00011643,2]
[404328281,1770063038740,-200.0,0.00011681,2]
[404328282,1770063038750,-500.0,0.00011681,2]
[404328283,1770063038760,-200.0,0.00011681,2]
[404328284,1770063038770,-500.0,0.00011708,2]
[404328285,1770063038780,-1000.0,0.0001171,2]
[404328286,1770063038790,-1600.0,0.0001171,2]
[404328287,1770063038800,-1134.26821676,0.00011855,2]
[404328288,1770063038811,-51256.53880018,0.00011871,2]
[404328289,1770063038821,-500.0,0.00011982,2]
[404328290,1770063038832,-296002.9473674,0.00012028,2]
[404328291,1770063038842,-525.72,0.00012169,2]
[404328292,1770063038853,-51256.53880018,0.00012217,2]
[404328293,1770063038862,-200.0,0.00012229,2]
[404328294,1770063038873,-500.0,0.00012229,2]
[404328295,1770063038883,-208.65826531,0.00012229,2]
[404328296,1770063038892,-500.0,0.00012256,2]
[404328297,1770063038903,-188.43,0.00012408,2]
[404328298,1770063038913,-737.02185875,0.00012448,2]
[404328299,1770063038926,-500.0,0.0001253,2]
[404328300,1770063038938,-51256.53880018,0.00012562,2]
[404328301,1770063038948,-2816.95173349,0.00012607,2]
[404328302,1770063038958,-587.0,0.00012673,2]
[404328303,1770063038967,-2351.0,0.00012686,2]
[404328304,1770063038979,-433.0,0.00012732,2]
[404328305,1770063038989,-200.0,0.00012777,2]
[404328306,1770063038998,-500.0,0.00012777,2]
[404328307,1770063039008,-500.0,0.00012804,2]
[404328308,1770063039020,-270.94,0.00012877,2]
[404328309,1770063039031,-51256.53880018,0.00012907,2]
[404328310,1770063039041,-98441.87394799,0.00013,2]
[404328311,1770063039052,-1000.0,0.00013011,2]
[404328312,1770063039062,-1600.0,0.00013011,2]
[404328313,1770063039072,-160.29771235,0.00013075,2]
[404328314,1770063039082,-500.0,0.00013078,2]
[404328315,1770063039092,-1134.26821676,0.00013081,2]
[404328316,1770063039102,-1617.53493796,0.0001312,2]
[404328317,1770063039112,-7805.66,0.00013151,2]
[404328318,1770063039122,-51256.53880018,0.00013253,2]
[404328319,1770063039135,-200.0,0.00013325,2]
[404328320,1770063039145,-500.0,0.00013325,2]
[404328321,1770063039155,-1503.0,0.00013343,2]
[404328322,1770063039165,-1503.0,0.00013343,2]
[404328323,1770063039175,-153.79594173,0.00013343,2]
[404328324,1770063039184,-500.0,0.00013352,2]
[404328325,1770063039194,-200.0,0.000134,2]
[404328326,1770063039203,-296002.9473674,0.00013462,2]
[404328327,1770063039213,-200.0,0.00013534,2]
[404328328,1770063039223,-500.0,0.00013626,2]
[404328329,1770063039232,-2816.95173349,0.00013666,2]
[404328330,1770063039242,-200.0,0.00013669,2]
[404328331,1770063039252,-500.0,0.00013698,2]
[404328332,1770063039262,-500.0,0.00013698,2]
[404328333,1770063039271,-500.0,0.00013698,2]
[404328334,1770063039281,-500.0,0.00013698,2]
[404328335,1770063039290,-500.0,0.00013698,2]
[404328336,1770063039300,-500.0,0.00013698,2]
[404328337,1770063039309,-500.0,0.00013698,2]
[404328338,1770063039321,-500.0,0.00013698,2]
[404328339,1770063039331,-500.0,0.00013698,2]
[404328340,1770063039340,-500.0,0.00013698,2]
[404328341,1770063039350,-500.0,0.00013698,2]
[404328342,1770063039359,-500.0,0.00013698,2]
[404328343,1770063039369,-500.0,0.00013698,2]
[404328344,1770063039379,-500.0,0.00013698,2]
[404328346,1770063039388,-396.07833004,0.00013698,2]
[404328347,1770063039398,-500.0,0.00013698,2]
[404328348,1770063039407,-500.0,0.00013698,2]
[404328349,1770063039417,-500.0,0.00013698,2]
[404328350,1770063039427,-500.0,0.00013698,2]
[404328352,1770063039436,-500.0,0.00013698,2]
[404328353,1770063039446,-614.04732503,0.00013698,2]
[404328354,1770063039455,-500.0,0.00013698,2]
[404328355,1770063039465,-500.0,0.00013698,2]
[404328356,1770063039474,-500.0,0.00013698,2]
[404328357,1770063039484,-500.0,0.00013698,2]
[404328358,1770063039494,-500.0,0.00013698,2]
[404328359,1770063039503,-500.0,0.00013698,2]
[404328360,1770063039512,-500.0,0.00013698,2]
[404328361,1770063039522,-500.0,0.00013698,2]
[404328362,1770063039531,-500.0,0.00013698,2]
[404328363,1770063039540,-500.0,0.00013698,2]
[404328364,1770063039550,-500.0,0.00013698,2]
[404328365,1770063039560,-500.0,0.00013698,2]
[404328366,1770063039570,-500.0,0.00013698,2]
[404328367,1770063039579,-366.58671911,0.00013698,2]
[404328368,1770063039589,-642.09,0.00013698,2]
[404328369,1770063039598,-642.09,0.00013698,2]
[404328370,1770063039608,-642.09,0.00013698,2]
[404328371,1770063039617,-642.09,0.00013698,2]
[404328372,1770063039626,-642.09,0.00013698,2]
[404328373,1770063039635,-642.09,0.00013698,2]
[404328375,1770063039645,-642.09,0.00013698,2]
[404328376,1770063039654,-642.09,0.00013698,2]
[404328377,1770063039663,-642.09,0.00013698,2]
[404328378,1770063039672,-642.09,0.00013698,2]
[404328379,1770063039682,-642.09,0.00013698,2]
[404328380,1770063039691,-642.09,0.00013698,2]
[404328381,1770063039701,-642.09,0.00013698,2]
[404328382,1770063039719,-642.09,0.00013698,2]
[404328383,1770063039729,-642.09,0.00013698,2]
[404328384,1770063039739,-642.09,0.00013698,2]
[404328385,1770063039748,-642.09,0.00013698,2]
[404328386,1770063039757,-642.09,0.00013698,2]
[404328387,1770063039767,-642.09,0.00013698,2]
[404328388,1770063039777,-642.09,0.00013698,2]
[404328389,1770063039786,-642.09,0.00013698,2]
[404328390,1770063039796,-642.09,0.00013698,2]
[404328391,1770063039805,-642.09,0.00013698,2]
[404328392,1770063039815,-642.24920592,0.00013698,2]
[404328393,1770063039824,-520.9392261,0.00013698,2]
[404328394,1770063039834,-500.0,0.00013698,2]
[404328395,1770063039844,-500.0,0.00013698,2]
[404328396,1770063039853,-500.0,0.00013698,2]
[404328397,1770063039863,-500.0,0.00013698,2]
[404328398,1770063039873,-500.0,0.00013698,2]
[404328399,1770063039882,-500.0,0.00013698,2]
[404328400,1770063039892,-500.0,0.00013698,2]
[404328401,1770063039902,-500.0,0.00013698,2]
[404328402,1770063039911,-556.64650747,0.00013698,2]
[404328403,1770063039922,-500.0,0.00013698,2]
[404328404,1770063039932,-500.0,0.00013698,2]
[404328405,1770063039945,-500.0,0.00013698,2]
[404328406,1770063039954,-469.64985738,0.00013698,2]
[404328407,1770063039963,-605.88,0.00013698,2]
[404328408,1770063039973,-605.88,0.00013698,2]
[404328409,1770063039984,-605.88,0.00013698,2]
[404328410,1770063039993,-605.88,0.00013698,2]
[404328411,1770063040003,-605.88,0.00013698,2]
[404328412,1770063040013,-605.88,0.00013698,2]
[404328413,1770063040023,-605.88,0.00013698,2]
[404328414,1770063040032,-605.88,0.00013698,2]
[404328415,1770063040043,-605.88,0.00013698,2]
[404328416,1770063040053,-605.88,0.00013698,2]
[404328417,1770063040062,-605.88,0.00013698,2]
[404328418,1770063040071,-605.88,0.00013698,2]
[404328419,1770063040081,-605.88,0.00013698,2]
[404328420,1770063040091,-605.88,0.00013698,2]
[404328421,1770063040104,-605.88,0.00013698,2]
[404328422,1770063040114,-605.88,0.00013698,2]
[404328423,1770063040124,-605.88,0.00013698,2]
[404328424,1770063040134,-605.88,0.00013698,2]
[404328425,1770063040143,-605.88,0.00013698,2]
[404328426,1770063040152,-605.88,0.00013698,2]
[404328427,1770063040164,-605.88,0.00013698,2]
[404328428,1770063040173,-605.88,0.00013698,2]
[404328429,1770063040183,-605.88,0.00013698,2]
[404328430,1770063040192,-606.04317558,0.00013698,2]
[404328431,1770063040202,-500.0,0.00013698,2]
[404328432,1770063040211,-500.0,0.00013698,2]
[404328433,1770063040220,-500.0,0.00013698,2]
[404328434,1770063040233,-500.0,0.00013698,2]
[404328435,1770063040242,-500.0,0.00013698,2]
[404328436,1770063040252,-500.0,0.00013698,2]
[404328437,1770063040261,-500.0,0.00013698,2]
[404328438,1770063040271,-500.0,0.00013698,2]
[404328439,1770063040281,-500.0,0.00013698,2]
[404328440,1770063040292,-500.0,0.00013698,2]
[404328441,1770063040302,-500.0,0.00013698,2]
[404328443,1770063040636,-630.82371033,0.00013698,2]
[404328444,1770063040645,-748.74,0.00013698,2]
[404328445,1770063040655,-748.74,0.00013698,2]
[404328446,1770063040663,-748.74,0.00013698,2]
[404328447,1770063040672,-748.74,0.00013698,2]
[404328448,1770063040681,-748.74,0.00013698,2]
[404328449,1770063040690,-748.74,0.00013698,2]
[404328450,1770063040699,-748.74,0.00013698,2]
[404328451,1770063040710,-748.74,0.00013698,2]
[404328452,1770063040718,-748.74,0.00013698,2]
[404328453,1770063040727,-748.74,0.00013698,2]
[404328454,1770063040736,-748.74,0.00013698,2]
[404328455,1770063040745,-500.0,0.00013698,2]
[404328456,1770063040754,-748.74,0.00013698,2]
[404328457,1770063040763,-748.74,0.00013698,2]
[404328458,1770063040772,-500.0,0.00013698,2]
[404328459,1770063040786,-748.74,0.00013698,2]
[404328460,1770063040796,-500.0,0.00013698,2]
[404328461,1770063040805,-748.74,0.00013698,2]
[404328462,1770063040815,-500.0,0.00013698,2]
[404328463,1770063040824,-748.74,0.00013698,2]
[404328464,1770063040834,-500.0,0.00013698,2]
[404328465,1770063040843,-748.74,0.00013698,2]
[404328466,1770063040851,-500.0,0.00013698,2]
[404328467,1770063040861,-748.74,0.00013698,2]
[404328468,1770063040871,-500.0,0.00013698,2]
[404328469,1770063040880,-507.90611429,0.00013698,2]
[404328470,1770063040890,-521.7,0.00013698,2]
[404328471,1770063040900,-521.7,0.00013698,2]
[404328472,1770063040910,-521.7,0.00013698,2]
[404328473,1770063040919,-521.7,0.00013698,2]
[404328474,1770063040928,-521.7,0.00013698,2]
[404328475,1770063040941,-521.7,0.00013698,2]
[404328476,1770063040951,-521.7,0.00013698,2]
[404328477,1770063040960,-521.7,0.00013698,2]
[404328478,1770063040969,-521.7,0.00013698,2]
[404328479,1770063040979,-521.7,0.00013698,2]
[404328480,1770063040989,-521.7,0.00013698,2]
[404328481,1770063040999,-521.7,0.00013698,2]
[404328482,1770063041009,-500.0,0.00013698,2]
[404328483,1770063041019,-521.7,0.00013698,2]
[404328484,1770063041028,-500.0,0.00013698,2]
[404328485,1770063041038,-521.7,0.00013698,2]
[404328486,1770063041047,-285.04848986,0.00013698,2]
[404328487,1770063041058,-521.7,0.00013698,2]
[404328488,1770063041068,-500.0,0.00013698,2]
[404328489,1770063041077,-521.7,0.00013698,2]
[404328490,1770063041087,-500.0,0.00013698,2]
[404328491,1770063041096,-521.7,0.00013698,2]
[404328492,1770063041105,-500.0,0.00013698,2]
[404328493,1770063041115,-521.7,0.00013698,2]
[404328494,1770063041124,-500.0,0.00013698,2]
[404328495,1770063041134,-500.0,0.00013698,2]
[404328496,1770063041143,-500.0,0.00013698,2]
[404328497,1770063041152,-500.0,0.00013698,2]
[404328498,1770063041162,-500.0,0.00013698,2]
[404328499,1770063041172,-500.0,0.00013698,2]
[404328500,1770063041182,-500.0,0.00013698,2]
[404328501,1770063041191,-500.0,0.00013698,2]
[404328502,1770063041200,-500.0,0.00013698,2]
[404328503,1770063041210,-500.0,0.00013698,2]
[404328504,1770063041219,-500.0,0.00013698,2]
[404328505,1770063041230,-500.0,0.00013698,2]
[404328506,1770063041239,-500.0,0.00013698,2]
[404328507,1770063041249,-500.0,0.00013698,2]
[404328508,1770063041258,-317.29293236,0.00013698,2]
[404328509,1770063041267,-500.0,0.00013698,2]
[404328510,1770063041276,-500.0,0.00013698,2]
[404328511,1770063041286,-500.0,0.00013698,2]
[404328512,1770063041295,-500.0,0.00013698,2]
[404328513,1770063041305,-500.0,0.00013698,2]
[404328514,1770063041315,-500.0,0.00013698,2]
[404328515,1770063041324,-500.0,0.00013698,2]
[404328516,1770063041334,-500.0,0.00013698,2]
[404328517,1770063041346,-500.0,0.00013698,2]
[404328518,1770063041355,-500.0,0.00013698,2]
[404328519,1770063041365,-500.0,0.00013698,2]
[404328520,1770063041374,-500.0,0.00013698,2]
[404328521,1770063041384,-500.0,0.00013698,2]
[404328522,1770063041393,-204.76668616,0.00013698,2]
[404328523,1770063041402,-565.72,0.00013698,2]
[404328524,1770063041412,-565.72,0.00013698,2]
[404328525,1770063041422,-565.72,0.00013698,2]
[404328526,1770063041431,-565.72,0.00013698,2]
[404328527,1770063041440,-565.72,0.00013698,2]
[404328528,1770063041449,-565.72,0.00013698,2]
[404328529,1770063041458,-565.72,0.00013698,2]
[404328530,1770063041468,-565.72,0.00013698,2]
[404328531,1770063041477,-565.72,0.00013698,2]
[404328532,1770063041486,-565.72,0.00013698,2]
[404328533,1770063041495,-565.72,0.00013698,2]
[404328534,1770063041504,-565.72,0.00013698,2]
[404328535,1770063041512,-565.72,0.00013698,2]
[404328536,1770063041522,-565.72,0.00013698,2]
[404328537,1770063041532,-565.72,0.00013698,2]
[404328538,1770063041541,-565.72,0.00013698,2]
[404328539,1770063041551,-565.72,0.00013698,2]
[404328540,1770063041560,-565.72,0.00013698,2]
[404328541,1770063041570,-500.0,0.00013698,2]
[404328542,1770063041580,-500.0,0.00013698,2]
[404328543,1770063041589,-500.0,0.00013698,2]
[404328544,1770063041599,-500.0,0.00013698,2]
[404328545,1770063041607,-500.0,0.00013698,2]
[404328546,1770063041617,-500.0,0.00013698,2]
[404328547,1770063041626,-500.0,0.00013698,2]
[404328548,1770063041635,-500.0,0.00013698,2]
[404328549,1770063041645,-560.54945219,0.00013698,2]
[404328550,1770063041654,-500.0,0.00013698,2]
[404328551,1770063041664,-500.0,0.00013698,2]
[404328552,1770063041674,-500.0,0.00013698,2]
[404328553,1770063041683,-500.0,0.00013698,2]
[404328554,1770063041693,-500.0,0.00013698,2]
[404328555,1770063041703,-500.0,0.00013698,2]
[404328556,1770063041712,-500.0,0.00013698,2]
[404328557,1770063041722,-500.0,0.00013698,2]
[404328558,1770063041735,-500.0,0.00013698,2]
[404328559,1770063041744,-330.26941115,0.00013698,2]
[404328560,1770063041753,-1353.09,0.00013698,2]
[404328561,1770063041763,-1353.09,0.00013698,2]
[404328562,1770063041772,-1353.09,0.00013698,2]
[404328563,1770063041782,-1353.09,0.00013698,2]
[404328564,1770063041792,-1353.09,0.00013698,2]
[404328565,1770063041802,-1353.09,0.00013698,2]
[404328566,1770063041813,-1353.09,0.00013698,2]
[404328567,1770063041823,-1353.09,0.00013698,2]
[404328568,1770063041833,-1353.09,0.00013698,2]
[404328569,1770063041842,-1353.09,0.00013698,2]
[404328570,1770063041852,-1353.09,0.00013698,2]
[404328571,1770063041863,-1353.09,0.00013698,2]
[404328572,1770063041872,-1353.09,0.00013698,2]
[404328573,1770063041882,-1353.09,0.00013698,2]
[404328574,1770063041891,-1353.09,0.00013698,2]
[404328575,1770063041901,-1353.09,0.00013698,2]
[404328576,1770063041910,-1353.09,0.00013698,2]
[404328577,1770063041920,-1353.09,0.00013698,2]
[404328578,1770063041930,-500.0,0.00013698,2]
[404328579,1770063041944,-500.0,0.00013698,2]
[404328580,1770063041954,-312.15594151,0.00013698,2]
[404328581,1770063041963,-500.0,0.00013698,2]
[404328582,1770063041974,-500.0,0.00013698,2]
[404328583,1770063041985,-500.0,0.00013698,2]
[404328584,1770063041995,-500.0,0.00013698,2]
[404328585,1770063042004,-500.0,0.00013698,2]
[404328586,1770063042014,-500.0,0.00013698,2]
[404328587,1770063042024,-440.6625364,0.00013698,2]
[404328588,1770063042033,-500.0,0.00013698,2]
[404328589,1770063042042,-500.0,0.00013698,2]
[404328590,1770063042052,-500.0,0.00013698,2]
[404328591,1770063042062,-500.0,0.00013698,2]
[404328592,1770063042071,-500.0,0.00013698,2]
[404328593,1770063042081,-500.0,0.00013698,2]
[404328594,1770063042090,-500.0,0.00013698,2]
[404328595,1770063042099,-500.0,0.00013698,2]
[404328596,1770063042108,-500.0,0.00013698,2]
[404328597,1770063042117,-500.0,0.00013698,2]
[404328598,1770063042129,-500.0,0.00013698,2]
[404328599,1770063042139,-500.0,0.00013698,2]
[404328600,1770063042148,-500.0,0.00013698,2]
[404328601,1770063042158,-500.0,0.00013698,2]
[404328602,1770063042168,-500.0,0.00013698,2]
[404328603,1770063042177,-607.97214338,0.00013698,2]
[404328604,1770063042186,-1235.79,0.00013698,2]
[404328605,1770063042196,-1235.79,0.00013698,2]
[404328606,1770063042205,-1235.79,0.00013698,2]
[404328607,1770063042215,-1235.79,0.00013698,2]
[404328608,1770063042224,-1235.79,0.00013698,2]
[404328609,1770063042234,-1235.79,0.00013698,2]
[404328610,1770063042243,-1235.79,0.00013698,2]
[404328611,1770063042252,-1235.79,0.00013698,2]
[404328612,1770063042261,-1235.79,0.00013698,2]
[404328613,1770063042271,-1235.79,0.00013698,2]
[404328614,1770063042281,-1235.79,0.00013698,2]
[404328615,1770063042291,-1235.79,0.00013698,2]
[404328616,1770063042300,-1235.79,0.00013698,2]
[404328617,1770063042311,-1235.79,0.00013698,2]